bitfinex/quotes_SOLUSD_20241105
["timestamp","ask_amount","ask_price","bid_price","bid_amount"]
[1730835093893,10.99371328,167.1,167.05,181.2593131]
[1730835094091,10.99371328,167.09,167.05,181.2593131]
[1730835101118,10.99371328,167.1,167.05,181.2593131]
[1730835102992,10.99371328,167.09,167.05,181.2593131]
[1730835103198,10.99371328,167.08,167.05,181.2593131]
[1730835104995,10.99371328,167.09,167.05,181.2593131]
[1730835107511,10.99371328,167.1,167.05,181.2593131]
[1730835108214,10.99371328,167.09,167.05,181.2593131]
[1730835110925,5.9826,167.15,167.07,10.99371328]
[1730835111126,10.99371328,167.14,167.08,10.99371328]
[1730835111326,10.99371328,167.11,167.07,160.0]
[1730835111703,10.99371328,167.1,167.07,160.0]
[1730835112105,10.99371328,167.1,167.08,5.9851]
[1730835113425,10.99371328,167.09,167.07,160.0]
[1730835113735,10.99371328,167.08,167.07,160.0]
[1730835115019,10.99371328,167.1,167.07,160.0]
[1730835115336,10.99371328,167.1,167.06,5.9858]
[1730835115630,10.99371328,167.09,167.06,5.9858]
[1730835120633,10.99371328,167.1,167.06,5.9858]
[1730835120816,10.99371328,167.1,167.06,20.9504]
[1730835121138,10.99371328,167.11,167.06,20.9504]
[1730835121433,10.99371328,167.1,167.06,180.9504]
[1730835121639,10.99371328,167.09,167.06,180.9504]
[1730835121837,10.99371328,167.1,167.06,180.9504]
[1730835123216,5.9826,167.15,167.07,10.99371328]
[1730835123412,10.99371328,167.13,167.07,177.39081328]
[1730835124540,16.97701328,167.13,167.08,5.9851]
[1730835124718,10.99371328,167.12,167.08,5.9851]
[1730835125343,10.99371328,167.1,167.08,5.9851]
[1730835125638,10.99371328,167.1,167.08,165.9851]
[1730835126630,10.99371328,167.09,167.08,160.0]
[1730835127737,10.99371328,167.1,167.08,160.0]
[1730835128641,10.99371328,167.11,167.08,160.0]
[1730835130454,0.1,167.16,167.08,160.0]
[1730835130752,10.99371328,167.11,167.08,160.0]
[1730835131336,10.99371328,167.13,167.08,165.9848]
[1730835133430,16.97711328,167.13,167.08,165.9848]
[1730835133942,5.9834,167.13,167.08,165.9848]
[1730835134152,5.9834,167.13,167.08,176.97851328]
[1730835134760,10.99371328,167.13,167.08,165.9848]
[1730835134960,10.99371328,167.12,167.08,165.9848]
[1730835135334,20.9374,167.17,167.08,165.9848]
[1730835135534,10.99371328,167.12,167.08,165.9848]
[1730835137861,10.99371328,167.1,167.08,160.0]
[1730835140652,10.99371328,167.09,167.08,160.0]
[1730835142243,16.97841328,167.09,167.06,160.0]
[1730835142440,10.99371328,167.07,167.06,160.0]
[1730835143543,16.97921328,167.07,167.06,160.0]
[1730835143746,21.46650963,167.07,167.06,160.0]
[1730835145363,21.46650963,167.07,167.05,0.3076131]
[1730835145579,15.48100963,167.06,167.05,0.3076131]
[1730835145946,10.99371328,167.06,167.05,160.3076131]
[1730835146164,15.47888709,167.06,167.05,160.3076131]
[1730835149262,15.47610845,167.06,167.05,160.3076131]
[1730835149466,4.48239517,167.06,167.05,160.3076131]
[1730835151146,4.48239517,167.06,167.05,177.28752638]
[1730835151548,10.99371328,167.1,167.05,192.25302638]
[1730835151744,4.47988421,167.09,167.05,192.25302638]
[1730835151959,4.47988421,167.08,167.05,192.25302638]
[1730835152186,4.47988421,167.07,167.06,10.99371328]
[1730835152490,10.99371328,167.13,167.07,16.2097]
[1730835152783,15.47339434,167.12,167.07,16.2097]
[1730835152985,4.47968106,167.11,167.07,16.2097]
[1730835153278,4.47968106,167.1,167.07,16.2097]
[1730835153460,4.47968106,167.09,167.07,16.2097]
[1730835153657,4.47968106,167.08,167.07,16.2097]
[1730835153858,15.47339434,167.08,167.05,187.4640131]
[1730835154066,15.46947902,167.07,167.05,175.2731131]
[1730835154275,4.47509544,167.06,167.05,175.2731131]
[1730835154774,10.99371328,167.07,167.05,175.2731131]
[1730835154981,10.99371328,167.07,167.05,160.3076131]
[1730835155162,15.46822166,167.06,167.05,0.3076131]
[1730835158277,10.99371328,167.06,167.05,0.3076131]
[1730835158477,15.46776041,167.06,167.05,0.3076131]
[1730835158862,4.47404713,167.06,167.05,0.3076131]
[1730835160393,10.99371328,167.07,167.05,0.3076131]
[1730835161581,15.46946726,167.06,167.05,0.3076131]
[1730835163180,19.94695569,167.06,167.05,0.3076131]
[1730835164186,19.94801403,167.06,167.05,0.3076131]
[1730835167573,10.99371328,167.06,167.05,0.3076131]
[1730835167778,19.9473809,167.06,167.05,0.3076131]
[1730835167992,10.99371328,167.06,167.05,0.3076131]
[1730835168177,19.94745709,167.06,167.05,0.3076131]
[1730835171007,8.95374381,167.06,167.05,0.3076131]
[1730835171480,4.47714219,167.06,167.05,0.3076131]
[1730835171680,8.95384347,167.06,167.05,0.3076131]
[1730835172387,8.95384347,167.06,167.05,17.28752638]
[1730835172696,30.495,167.14,167.05,32.25302638]
[1730835172697,10.99371328,167.11,167.05,32.25302638]
[1730835173007,8.95462604,167.1,167.06,10.99371328]
[1730835173214,4.47728239,167.09,167.06,10.99371328]
[1730835173415,4.47728239,167.08,167.06,170.99371328]
[1730835173588,10.99371328,167.12,167.06,170.99371328]
[1730835173793,4.47758721,167.11,167.06,170.99371328]
[1730835173986,4.47758721,167.1,167.06,170.99371328]
[1730835174189,4.47758721,167.09,167.07,20.9492]
[1730835174409,4.47758721,167.08,167.07,20.9492]
[1730835177613,4.47758721,167.08,167.07,180.9492]
[1730835178124,4.47758721,167.08,167.07,191.94291328]
[1730835178445,10.99371328,167.12,167.07,191.94291328]
[1730835178590,4.47781419,167.08,167.07,191.94291328]
[1730835178790,4.47781475,167.08,167.07,191.94291328]
[1730835179216,10.99371328,167.12,167.07,191.94291328]
[1730835180202,10.99371328,167.11,167.07,180.9492]
[1730835181388,10.99371328,167.12,167.07,180.9492]
[1730835182208,10.99371328,167.11,167.07,180.9492]
[1730835182521,10.99371328,167.11,167.07,174.9637]
[1730835182725,10.99371328,167.08,167.07,160.0]
[1730835183517,10.99371328,167.08,167.05,0.3076131]
[1730835183719,10.99371328,167.06,167.05,0.3076131]
[1730835185024,16.97951328,167.06,167.05,0.3076131]
[1730835185724,10.99371328,167.06,167.05,0.3076131]
[1730835189719,10.99371328,167.07,167.05,0.3076131]
[1730835189918,5.9844,167.1,167.05,6.2937131]
[1730835190116,10.99371328,167.08,167.05,6.2937131]
[1730835190315,10.99371328,167.09,167.05,6.2937131]
[1730835190530,10.99371328,167.08,167.05,6.2937131]
[1730835195440,10.99371328,167.08,167.05,166.2937131]
[1730835195821,10.99371328,167.06,167.05,160.3076131]
[1730835196043,16.97951328,167.06,167.05,160.3076131]
[1730835197446,21.45768096,167.06,167.05,160.3076131]
[1730835197820,4.47816768,167.06,167.05,160.3076131]
[1730835198133,21.45768096,167.06,167.05,160.3076131]
[1730835199635,21.45826685,167.06,167.05,160.3076131]
[1730835201319,21.45826685,167.06,167.05,0.3076131]
[1730835202644,16.97951328,167.06,167.05,0.3076131]
[1730835202832,21.45956496,167.06,167.05,0.3076131]
[1730835205045,4.48005168,167.06,167.05,0.3076131]
[1730835206323,4.47989648,167.06,167.05,0.3076131]
[1730835209642,16.97891328,167.08,167.05,0.3076131]
[1730835209852,15.47373222,167.07,167.05,0.3076131]
[1730835210028,4.48001894,167.06,167.05,0.3076131]
[1730835210348,15.47373222,167.06,167.05,0.3076131]
[1730835215750,4.48001894,167.06,167.05,0.3076131]
[1730835217159,15.47373222,167.06,167.05,0.3076131]
[1730835217844,21.45953222,167.06,167.05,0.3076131]
[1730835218247,16.97951328,167.06,167.05,0.3076131]
[1730835218944,21.4598123,167.06,167.05,0.3076131]
[1730835219156,10.99371328,167.06,167.05,0.3076131]
[1730835219729,15.47219965,167.06,167.05,0.3076131]
[1730835220838,21.45799965,167.06,167.05,0.3076131]
[1730835223487,25.93499241,167.06,167.05,0.3076131]
[1730835225347,14.94127913,167.06,167.05,0.3076131]
[1730835225659,25.93499241,167.06,167.05,0.3076131]
[1730835227952,21.45799965,167.06,167.05,0.3076131]
[1730835228278,25.93035441,167.06,167.05,0.3076131]
[1730835229941,21.45799965,167.06,167.05,0.3076131]
[1730835233153,16.97951328,167.06,167.05,0.3076131]
[1730835239254,5.9858,167.06,167.05,0.3076131]
[1730835239467,16.97951328,167.06,167.05,0.3076131]
[1730835243768,10.99371328,167.07,167.05,0.3076131]
[1730835244566,5.9847,167.09,167.05,0.3076131]
[1730835244874,10.99371328,167.08,167.05,0.3076131]
[1730835245166,5.9833,167.13,167.05,32.25302638]
[1730835245339,10.99371328,167.13,167.07,10.99371328]
[1730835245544,10.99371328,167.13,167.08,10.99371328]
[1730835245744,10.99371328,167.13,167.07,10.99371328]
[1730835246558,10.99371328,167.12,167.07,16.97881328]
[1730835246757,10.99371328,167.09,167.05,175.2731131]
[1730835246941,5.9834,167.13,167.05,175.2731131]
[1730835246942,10.99371328,167.08,167.05,15.2731131]
[1730835247145,10.99371328,167.08,167.05,0.3076131]
[1730835247453,0.1,167.12,167.05,0.3076131]
[1730835247645,10.99371328,167.06,167.05,0.3076131]
[1730835248245,10.99371328,167.07,167.05,0.3076131]
[1730835248671,10.99371328,167.08,167.05,0.3076131]
[1730835250376,16.97881328,167.08,167.05,0.3076131]
[1730835251583,10.99371328,167.07,167.05,0.3076131]
[1730835252292,5.984,167.11,167.05,0.3076131]
[1730835252475,10.99371328,167.06,167.05,0.3076131]
[1730835260882,10.99371328,167.06,167.05,0.3076131]
[1730835262979,5.9858,167.07,167.05,0.3076131]
[1730835263279,10.99371328,167.06,167.05,0.3076131]
[1730835263493,10.99371328,167.07,167.05,0.3076131]
[1730835263687,16.97811328,167.1,167.05,0.3076131]
[1730835264464,16.97811328,167.1,167.05,6.2937131]
[1730835265079,10.99371328,167.09,167.05,6.2937131]
[1730835265781,5.9837,167.12,167.05,21.2592131]
[1730835265979,10.99371328,167.09,167.05,21.2592131]
[1730835266287,10.99371328,167.09,167.05,15.2731131]
[1730835266995,16.97861328,167.09,167.05,15.2731131]
[1730835267378,0.1,167.07,167.05,0.3076131]
[1730835267561,23.876884,167.08,167.05,0.3076131]
[1730835267760,12.81745536,167.09,167.05,0.3076131]
[1730835268068,10.99371328,167.07,167.05,0.3076131]
[1730835269294,10.99371328,167.06,167.05,0.3076131]
[1730835271288,16.97951328,167.06,167.05,0.3076131]
[1730835276969,28.07322656,167.06,167.05,0.3076131]
[1730835277178,29.862684,167.06,167.05,0.3076131]
[1730835277395,84.8312504,167.06,167.05,0.3076131]
[1730835280173,0.1,167.04,166.96,16.5893131]
[1730835280393,10.99371328,166.98,166.96,16.5893131]
[1730835280699,44.17485312,167.04,166.96,16.5893131]
[1730835280700,10.99371328,166.97,166.96,0.3076131]
[1730835282275,16.98271328,166.97,166.96,0.3076131]
[1730835285407,10.99371328,166.97,166.96,0.3076131]
[1730835290414,14.9698,167.01,166.96,0.3076131]
[1730835290587,10.99371328,166.98,166.96,0.3076131]
[1730835291203,10.99371328,166.97,166.96,0.3076131]
[1730835291509,10.99371328,166.98,166.96,0.3076131]
[1730835291696,10.99371328,166.97,166.96,0.3076131]
[1730835294091,10.99371328,166.98,166.96,0.3076131]
[1730835296792,10.99371328,166.97,166.96,0.3076131]
[1730835298808,54.9685664,166.97,166.96,0.3076131]
[1730835299329,61.0575664,166.97,166.96,0.3076131]
[1730835299507,84.8344504,166.97,166.96,0.3076131]
[1730835301213,84.9344504,166.97,166.96,0.3076131]
[1730835301925,23.776884,166.96,166.88,160.3076131]
[1730835302133,10.99371328,166.9,166.88,0.3076131]
[1730835303128,10.99371328,166.91,166.88,0.3076131]
[1730835306425,10.99371328,166.89,166.88,0.3076131]
[1730835306605,10.99371328,166.9,166.88,0.3076131]
[1730835307300,23.776884,166.94,166.88,0.3076131]
[1730835307500,10.99371328,166.9,166.88,0.3076131]
[1730835309426,78.8454504,166.89,166.88,0.3076131]
[1730835310709,84.7373504,166.89,166.88,0.3076131]
[1730835311126,84.8373504,166.89,166.88,0.3076131]
[1730835311806,104.8373504,166.89,166.8,6.3026131]
[1730835312009,10.99371328,166.82,166.8,6.3026131]
[1730835312232,10.99371328,166.82,166.8,0.3076131]
[1730835313318,10.99371328,166.83,166.8,0.3076131]
[1730835313707,10.99371328,166.83,166.8,6.3025131]
[1730835316029,10.99371328,166.81,166.8,0.3076131]
[1730835317933,29.769884,166.86,166.8,0.3076131]
[1730835318233,10.99371328,166.82,166.8,0.3076131]
[1730835318542,29.769884,166.86,166.8,0.3076131]
[1730835318733,5.993,166.86,166.8,0.3076131]
[1730835319027,5.993,166.86,166.8,6.3027131]
[1730835319234,10.99371328,166.84,166.8,6.3027131]
[1730835319623,10.99371328,166.84,166.8,21.3070131]
[1730835320117,10.99371328,166.84,166.8,36.2950131]
[1730835322224,49.59599437,166.9,166.8,36.2950131]
[1730835322225,20.0,166.9,166.81,10.99371328]
[1730835322431,5.9916,166.9,166.83,10.99371328]
[1730835322616,10.99371328,166.89,166.83,10.99371328]
[1730835323124,5.9901,166.94,166.85,10.99371328]
[1730835323327,5.9901,166.94,166.87,10.99371328]
[1730835323525,10.99371328,166.93,166.87,10.99371328]
[1730835323839,10.99371328,166.92,166.87,10.99371328]
[1730835324015,10.99371328,166.91,166.86,17.31981328]
[1730835324215,10.99371328,166.91,166.87,5.9926]
[1730835324435,10.99371328,166.92,166.87,5.9926]
[1730835324763,0.1,166.97,166.87,22.1764]
[1730835324920,10.99371328,166.92,166.87,48.15181328]
[1730835325317,5.989,166.97,166.89,10.99371328]
[1730835325539,10.99371328,166.96,166.91,10.99371328]
[1730835325745,10.99371328,166.95,166.9,10.99371328]
[1730835326037,10.99371328,166.93,166.88,10.99371328]
[1730835326221,10.99371328,166.92,166.87,37.1581]
[1730835326424,10.99371328,166.92,166.87,48.15181328]
[1730835326621,10.99371328,166.91,166.87,37.1581]
[1730835327034,10.99371328,166.92,166.87,48.15181328]
[1730835327843,5.9905,166.93,166.87,48.15181328]
[1730835328035,10.99371328,166.92,166.87,48.15181328]
[1730835328571,20.0,166.96,166.88,10.99371328]
[1730835328722,10.99371328,166.94,166.88,10.99371328]
[1730835328926,10.99371328,166.93,166.88,10.99371328]
[1730835329740,16.98421328,166.93,166.88,16.98581328]
[1730835329946,16.98391328,166.94,166.88,16.98581328]
[1730835330447,5.9902,166.94,166.89,10.99371328]
[1730835330660,6.088,167.0,166.91,10.99371328]
[1730835330832,10.99371328,166.97,166.91,10.99371328]
[1730835331642,16.98311328,166.97,166.91,16.98481328]
[1730835332449,10.99371328,166.96,166.91,16.98481328]
[1730835333034,16.98321328,166.96,166.91,16.98481328]
[1730835333233,16.98321328,166.96,166.91,5.9911]
[1730835333436,16.98321328,166.96,166.88,25.97451328]
[1730835333437,10.99371328,166.93,166.88,25.97451328]
[1730835333635,10.99371328,166.93,166.88,31.96681328]
[1730835333931,10.99371328,166.94,166.88,31.96681328]
[1730835334136,10.99371328,166.95,166.89,10.99371328]
[1730835334344,10.99371328,166.94,166.89,10.99371328]
[1730835334639,16.98391328,166.94,166.88,31.96681328]
[1730835335229,10.99371328,166.96,166.9,10.99371328]
[1730835335429,10.99371328,166.96,166.91,10.99371328]
[1730835336244,10.99371328,166.96,166.9,10.99371328]
[1730835336442,10.99371328,166.94,166.89,10.99371328]
[1730835337052,10.99371328,166.95,166.89,10.99371328]
[1730835337236,10.99371328,166.95,166.9,5.9916]
[1730835337431,10.99371328,166.94,166.9,5.9916]
[1730835338755,10.99371328,166.94,166.89,10.99371328]
[1730835338929,10.99371328,166.94,166.89,31.96551328]
[1730835339547,10.99371328,166.95,166.89,31.96551328]
[1730835339736,5.9896,166.96,166.9,10.99371328]
[1730835339932,16.98331328,166.96,166.9,10.99371328]
[1730835340843,16.98331328,166.96,166.9,16.98501328]
[1730835341358,10.99371328,166.95,166.9,16.98501328]
[1730835341850,10.99371328,166.95,166.9,31.96401328]
[1730835342059,10.99371328,166.98,166.92,10.99371328]
[1730835342935,5.9876,167.01,166.94,10.99371328]
[1730835343157,10.99371328,167.0,166.94,10.99371328]
[1730835343959,10.99371328,167.0,166.95,5.9898]
[1730835344164,10.99371328,166.99,166.95,5.9898]
[1730835345059,10.99371328,166.99,166.94,20.9646]
[1730835346061,16.98201328,166.99,166.94,20.9646]
[1730835346639,10.99371328,166.97,166.93,175.3897]
[1730835346842,10.99371328,166.96,166.91,181.2326]
[1730835347042,10.99371328,166.95,166.91,166.2547]
[1730835347263,10.99371328,166.94,166.91,166.2547]
[1730835349846,10.99371328,166.94,166.91,160.0]
[1730835352469,10.99371328,166.94,166.9,5.9915]
[1730835354041,10.99371328,166.91,166.87,166.2718]
[1730835354245,10.99371328,166.92,166.87,23.25801328]
[1730835355548,10.99371328,166.92,166.87,38.23971328]
[1730835357057,6.0887,166.98,166.88,10.99371328]
[1730835357252,10.99371328,166.94,166.88,10.99371328]
[1730835357684,10.99371328,166.93,166.88,16.98571328]
[1730835357980,10.99371328,166.93,166.88,31.96651328]
[1730835359275,20.0,166.97,166.88,31.96651328]
[1730835359482,10.99371328,166.93,166.88,31.96651328]
[1730835360356,25.989,166.97,166.89,10.99371328]
[1730835360561,10.99371328,166.96,166.9,31.96431328]
[1730835360749,10.99371328,166.95,166.9,31.96431328]
[1730835360953,10.99371328,166.95,166.9,20.9706]
[1730835361372,10.99371328,166.95,166.9,180.9706]
[1730835361769,16.98351328,166.95,166.9,180.9706]
[1730835361955,10.99371328,166.94,166.9,180.9706]
[1730835364351,10.99371328,166.95,166.9,180.9706]
[1730835364674,10.99371328,166.97,166.91,10.99371328]
[1730835365459,30.8227,167.02,166.93,10.99371328]
[1730835365666,30.8227,167.02,166.93,170.99371328]
[1730835365667,10.99371328,166.99,166.93,170.99371328]
[1730835365878,10.99371328,167.0,166.94,10.99371328]
[1730835366378,10.99371328,166.99,166.93,177.29701328]
[1730835366676,16.98211328,166.99,166.94,5.9901]
[1730835367073,20.0,167.04,166.94,20.9655]
[1730835367283,10.99371328,166.99,166.94,20.9655]
[1730835367583,20.9519,167.05,166.94,31.95921328]
[1730835367746,5.9862,167.05,166.97,10.99371328]
[1730835367952,10.99371328,167.03,166.97,27.25101328]
[1730835368478,10.99371328,167.02,166.97,16.2573]
[1730835368678,10.99371328,167.0,166.97,16.2573]
[1730835368972,10.99371328,166.99,166.94,185.96911328]
[1730835369176,10.99371328,166.98,166.94,160.0]
[1730835369374,10.99371328,166.96,166.93,22.2359]
[1730835369574,10.99371328,166.96,166.93,15.9326]
[1730835369774,10.99371328,166.97,166.93,15.9326]
[1730835370669,10.99371328,166.96,166.93,15.9326]
[1730835370875,10.99371328,166.96,166.91,180.9691]
[1730835372656,16.98311328,166.96,166.91,180.9691]
[1730835373883,10.99371328,166.95,166.91,180.9691]
[1730835378580,10.99371328,166.96,166.91,180.9691]
[1730835380461,10.99371328,166.97,166.91,191.96281328]
[1730835382788,10.99371328,166.96,166.91,180.9691]
[1730835388871,10.99371328,166.97,166.91,191.96281328]
[1730835389186,40.9532,167.04,166.92,10.99371328]
[1730835389362,10.99371328,167.0,166.95,5.9898]
[1730835390065,10.99371328,166.99,166.95,5.9898]
[1730835390661,10.99371328,166.97,166.94,174.9754]
[1730835390863,10.99371328,166.96,166.94,160.0]
[1730835391104,10.99371328,166.95,166.94,160.0]
[1730835391560,10.99371328,166.96,166.94,160.0]
[1730835391766,10.99371328,166.97,166.94,160.0]
[1730835392478,14.9687,167.02,166.94,160.0]
[1730835392713,10.99371328,166.99,166.94,165.99]
[1730835393407,10.99371328,166.98,166.94,165.99]
[1730835394797,10.99371328,166.99,166.94,180.9654]
[1730835394993,10.99371328,166.99,166.94,191.95911328]
[1730835395473,5.9869,167.03,166.94,191.95911328]
[1730835395800,10.99371328,166.99,166.94,191.95911328]
[1730835395999,10.99371328,166.99,166.94,180.9654]
[1730835396573,10.99371328,166.99,166.94,191.95911328]
[1730835397001,49.96135312,167.04,166.95,27.23441328]
[1730835397002,5.9865,167.04,166.95,27.23441328]
[1730835397201,10.99371328,167.02,166.96,10.99371328]
[1730835397986,10.99371328,167.02,166.97,20.9617]
[1730835400204,10.99371328,167.01,166.97,14.9727]
[1730835400704,5.987,167.03,166.97,14.9727]
[1730835401004,10.99371328,167.01,166.97,14.9727]
[1730835401786,10.99371328,167.01,166.97,20.9617]
[1730835403812,10.99371328,167.02,166.97,20.9617]
[1730835404611,5.9862,167.05,166.98,10.99371328]
[1730835404908,10.99371328,167.05,166.99,10.99371328]
[1730835405286,10.99371328,167.04,166.98,10.99371328]
[1730835405485,10.99371328,167.03,166.97,31.95541328]
[1730835406289,10.99371328,167.01,166.97,20.9617]
[1730835407787,10.99371328,167.02,166.97,20.9617]
[1730835408588,10.99371328,167.0,166.97,14.9727]
[1730835408785,10.99371328,166.98,166.95,16.2407]
[1730835409087,59.38915312,167.04,166.93,14.9755]
[1730835409088,10.99371328,166.96,166.93,14.9755]
[1730835409286,10.99371328,166.95,166.93,20.9659]
[1730835409817,10.99371328,166.95,166.92,160.0]
[1730835410110,49.59599437,167.03,166.91,16.5444]
[1730835410111,10.99371328,166.94,166.91,182.5355]
[1730835410706,10.99371328,166.94,166.91,22.5355]
[1730835412319,10.99371328,166.93,166.91,16.5444]
[1730835412896,10.99371328,166.93,166.9,27.3746]
[1730835415017,10.99371328,166.93,166.9,14.9787]
[1730835418305,10.99371328,166.91,166.87,31.432]
[1730835418502,10.99371328,166.9,166.87,37.4246]
[1730835419015,10.99371328,166.91,166.87,37.4246]
[1730835419521,10.99371328,166.92,166.87,37.4246]
[1730835419695,10.99371328,166.92,166.87,48.41831328]
[1730835419895,10.99371328,166.92,166.87,37.4246]
[1730835420599,10.99371328,166.93,166.87,48.41831328]
[1730835420799,10.99371328,166.92,166.87,48.41831328]
[1730835420993,10.99371328,166.92,166.87,37.4246]
[1730835423618,10.99371328,166.92,166.87,197.4246]
[1730835423805,5.9894,166.96,166.9,10.99371328]
[1730835423991,10.99371328,166.96,166.91,10.99371328]
[1730835424188,10.99371328,166.96,166.9,170.99371328]
[1730835424999,10.99371328,166.96,166.91,5.9912]
[1730835425605,10.99371328,166.96,166.91,31.96301328]
[1730835426512,10.99371328,166.96,166.91,20.9693]
[1730835426915,25.988,167.0,166.92,10.99371328]
[1730835427107,10.99371328,166.97,166.92,180.968]
[1730835427996,10.99371328,166.96,166.92,180.968]
[1730835429518,10.99371328,166.95,166.92,180.968]
[1730835431715,10.99371328,166.93,166.92,160.0]
[1730835432299,10.99371328,166.93,166.87,160.0]
[1730835432515,10.99371328,166.88,166.87,160.0]
[1730835432714,10.99371328,166.89,166.84,174.9837]
[1730835433418,10.99371328,166.89,166.85,5.9932]
[1730835433919,10.99371328,166.9,166.85,5.9932]
[1730835434126,10.99371328,166.89,166.85,5.9932]
[1730835434814,5.9901,166.94,166.85,16.98691328]
[1730835435002,5.9901,166.94,166.86,10.99371328]
[1730835435327,10.99371328,166.92,166.86,10.99371328]
[1730835435620,5.9898,166.95,166.89,10.99371328]
[1730835435821,10.99371328,166.95,166.9,10.99371328]
[1730835435998,10.99371328,166.96,166.9,170.99371328]
[1730835436199,10.99371328,166.97,166.91,10.99371328]
[1730835436439,21.7746,167.03,166.94,10.99371328]
[1730835436731,10.99371328,167.0,166.95,10.99371328]
[1730835437017,10.99371328,167.01,166.96,16.98311328]
[1730835437230,10.99371328,166.99,166.96,5.9894]
[1730835437437,10.99371328,167.0,166.96,165.9894]
[1730835438333,10.99371328,166.98,166.96,160.0]
[1730835438512,10.99371328,166.97,166.96,160.0]
[1730835439425,17.24108378,166.97,166.92,174.9763]
[1730835439642,17.24108378,166.95,166.92,180.9671]
[1730835441022,17.24108378,166.96,166.92,180.9671]
[1730835442239,17.24108378,166.97,166.92,180.9671]
[1730835442449,20.9542,167.03,166.94,17.24108378]
[1730835442738,17.24108378,166.99,166.94,160.0]
[1730835443516,17.24108378,166.98,166.94,165.99]
[1730835445240,17.24108378,166.98,166.94,165.99]
[1730835445420,17.24108378,166.99,166.94,165.99]
[1730835445739,14.9673,167.03,166.94,165.99]
[1730835445740,17.24108378,167.0,166.94,198.20648378]
[1730835447243,17.24108378,166.98,166.94,180.9654]
[1730835447817,17.24108378,166.99,166.94,180.9654]
[1730835448122,17.24108378,167.0,166.94,198.20648378]
[1730835448674,17.24108378,166.99,166.94,180.9654]
[1730835448849,17.24108378,166.98,166.94,180.9654]
[1730835450136,17.24108378,166.99,166.94,180.9654]
[1730835451923,17.24108378,167.0,166.94,198.20648378]
[1730835452240,17.24108378,167.02,166.96,17.24108378]
[1730835453521,17.24108378,167.02,166.97,5.989]
[1730835454430,23.22838378,167.02,166.97,5.989]
[1730835454629,17.24108378,167.01,166.95,32.50858378]
[1730835454829,17.24108378,166.99,166.96,5.9894]
[1730835456222,17.24108378,166.99,166.96,165.9894]
[1730835456423,17.24108378,167.04,166.96,160.0]
[1730835456424,17.24108378,166.98,166.96,160.0]
[1730835456625,17.24108378,166.99,166.96,160.0]
[1730835458036,23.22948378,166.99,166.96,160.0]
[1730835458719,17.24108378,167.01,166.96,166.4095]
[1730835458955,17.24108378,167.0,166.96,172.3989]
[1730835459250,17.24108378,166.99,166.96,172.3989]
[1730835459430,11.03105773,166.99,166.96,172.3989]
[1730835459747,11.03105773,166.98,166.96,160.0]
[1730835460135,27.44345986,167.11,166.96,180.9629]
[1730835460438,11.03105773,167.05,166.99,11.03105773]
[1730835460621,11.03105773,167.05,166.99,171.03105773]
[1730835461023,11.03105773,167.04,166.99,160.0]
[1730835461223,17.01765773,167.04,166.99,165.9882]
[1730835462849,5.9866,167.04,166.99,177.01925773]
[1730835463050,11.03105773,167.04,166.99,165.9882]
[1730835463451,11.03105773,167.05,166.99,177.01925773]
[1730835464150,11.03105773,167.04,166.99,165.9882]
[1730835465926,11.03105773,167.03,166.99,165.9882]
[1730835470664,11.03105773,167.04,166.99,180.9591]
[1730835470959,11.03105773,167.04,166.99,191.99015773]
[1730835472655,17.01735773,167.05,166.99,191.99015773]
[1730835473048,11.03105773,167.04,166.99,191.99015773]
[1730835473936,5.9851,167.08,167.02,11.03105773]
[1730835474141,11.03105773,167.08,167.02,11.03105773]
[1730835474656,11.03105773,167.07,167.01,11.03105773]
[1730835475438,17.01655773,167.07,167.02,5.9873]
[1730835475739,5.9855,167.07,167.02,17.01835773]
[1730835475942,17.01625773,167.08,167.02,17.01835773]
[1730835476956,17.01625773,167.08,167.02,177.01835773]
[1730835477460,17.01625773,167.08,167.02,191.98655773]
[1730835479660,11.03105773,167.06,167.02,160.0]
[1730835479861,0.3076131,167.09,167.02,160.0]
[1730835479862,11.03105773,167.05,167.02,160.0]
[1730835481661,11.03105773,167.03,167.02,160.0]
[1730835481843,11.03105773,167.04,167.02,160.0]
[1730835482038,16.3008131,167.09,167.02,160.0]
[1730835482244,11.03105773,167.06,167.01,31.98745773]
[1730835482862,11.03105773,167.07,167.01,31.98745773]
[1730835483459,17.01615773,167.08,167.02,27.34755773]
[1730835484563,17.01615773,167.08,167.03,5.9869]
[1730835485867,11.03105773,167.07,167.03,165.9869]
[1730835488768,17.01615773,167.08,167.03,165.9869]
[1730835489567,11.33867083,167.09,167.03,191.98525773]
[1730835490144,17.32347083,167.09,167.03,191.98525773]
[1730835493366,11.33867083,167.09,167.03,191.98525773]